[Event "*** Titled Tuesday Blitz"]
[Site "Chess.com"]
[Date "2018.01.02"]
[Round "9"]
[White "BillieKimbah"]
[Black "gkchesstiger"]
[Result "1/2-1/2"]
[WhiteElo "2706"]
[BlackElo "2654"]
[TimeControl "180+2"]
[EndTime "15:00:41 PST"]
[Termination "Game drawn by stalemate"]

1. c4 {[%clk 0:03:00.8]} 1... c6 {[%clk 0:03:00.4]} 2. Nf3 {[%clk 0:02:59]} 2...
d5 {[%clk 0:03:01.6]} 3. d4 {[%clk 0:02:59.4]} 3... Nf6 {[%clk 0:03:01.6]} 4.
Nc3 {[%clk 0:03:00.5]} 4... a6 {[%clk 0:03:02.4]} 5. Qc2 {[%clk 0:03:01.1]} 5...
g6 {[%clk 0:02:50.4]} 6. e4 {[%clk 0:03:01.6]} 6... dxe4 {[%clk 0:02:47.7]} 7.
Nxe4 {[%clk 0:03:02.5]} 7... Nxe4 {[%clk 0:02:48.2]} 8. Qxe4 {[%clk 0:03:03.6]}
8... Bg7 {[%clk 0:02:49.5]} 9. Be2 {[%clk 0:03:04]} 9... O-O {[%clk 0:02:47.4]}
10. O-O {[%clk 0:03:04.6]} 10... Bf5 {[%clk 0:02:46.7]} 11. Qh4 {[%clk
0:02:56.9]} 11... Nd7 {[%clk 0:02:42.8]} 12. Bg5 {[%clk 0:02:53.7]} 12... f6
{[%clk 0:02:39]} 13. Be3 {[%clk 0:02:49]} 13... g5 {[%clk 0:02:39.3]} 14. Qg3
{[%clk 0:02:49.8]} 14... Qb8 {[%clk 0:02:39.6]} 15. Rad1 {[%clk 0:02:44.3]}
15... Qxg3 {[%clk 0:02:39.6]} 16. hxg3 {[%clk 0:02:44.9]} 16... Be6 {[%clk
0:02:34.7]} 17. d5 {[%clk 0:02:43.4]} 17... cxd5 {[%clk 0:02:35]} 18. cxd5
{[%clk 0:02:45.3]} 18... Bf7 {[%clk 0:02:35.6]} 19. Nd4 {[%clk 0:02:43.5]} 19...
Rfe8 {[%clk 0:02:25]} 20. Nf5 {[%clk 0:02:29.8]} 20... Bg6 {[%clk 0:02:22.5]}
21. g4 {[%clk 0:02:24.3]} 21... Bf8 {[%clk 0:02:22]} 22. Rc1 {[%clk 0:02:21.5]}
22... Rac8 {[%clk 0:02:22.1]} 23. Bc4 {[%clk 0:01:24.4]} 23... Ne5 {[%clk
0:02:17]} 24. Bb3 {[%clk 0:01:24.7]} 24... Bf7 {[%clk 0:02:17.3]} 25. f3 {[%clk
0:01:22.9]} 25... Nd3 {[%clk 0:02:10.1]} 26. Rxc8 {[%clk 0:01:10.4]} 26... Rxc8
{[%clk 0:02:10.2]} 27. Bd4 {[%clk 0:01:03.6]} 27... Nf4 {[%clk 0:02:07.3]} 28.
Re1 {[%clk 0:01:04.6]} 28... Bxd5 {[%clk 0:01:53.7]} 29. Nxe7+ {[%clk
0:01:04.3]} 29... Bxe7 {[%clk 0:01:54]} 30. Rxe7 {[%clk 0:01:05.9]} 30... Bxb3
{[%clk 0:01:54.3]} 31. axb3 {[%clk 0:01:06.8]} 31... Kf8 {[%clk 0:01:48.9]} 32.
Rxh7 {[%clk 0:00:59.4]} 32... Kg8 {[%clk 0:01:24]} 33. Re7 {[%clk 0:00:58.5]}
33... Kf8 {[%clk 0:01:25.4]} 34. Rh7 {[%clk 0:00:48]} 34... Kg8 {[%clk
0:01:26.4]} 35. Rd7 {[%clk 0:00:48.1]} 35... Ne2+ {[%clk 0:01:18.1]} 36. Kh2
{[%clk 0:00:48]} 36... Nxd4 {[%clk 0:01:18.7]} 37. Rxd4 {[%clk 0:00:48.7]} 37...
Rc6 {[%clk 0:01:16.9]} 38. Rd8+ {[%clk 0:00:48.1]} 38... Kf7 {[%clk 0:01:17.5]}
39. Rd7+ {[%clk 0:00:49.4]} 39... Kg6 {[%clk 0:01:18.4]} 40. Rxb7 {[%clk
0:00:51]} 40... Rc2 {[%clk 0:01:19.6]} 41. Rb6 {[%clk 0:00:45.1]} 41... Rxb2
{[%clk 0:01:20.7]} 42. b4 {[%clk 0:00:46.6]} 42... Kf7 {[%clk 0:01:19.2]} 43.
Kh3 {[%clk 0:00:46.9]} 43... Kg6 {[%clk 0:01:19.7]} 44. g3 {[%clk 0:00:47.7]}
44... Kf7 {[%clk 0:01:16.5]} 45. f4 {[%clk 0:00:47.4]} 45... Kg7 {[%clk
0:01:17.2]} 46. Rb7+ {[%clk 0:00:44.5]} 46... Kf8 {[%clk 0:01:17.8]} 47. fxg5
{[%clk 0:00:19.9]} 47... fxg5 {[%clk 0:01:17.3]} 48. Rb6 {[%clk 0:00:20.8]}
48... Kf7 {[%clk 0:01:17.8]} 49. Rxa6 {[%clk 0:00:21.1]} 49... Rxb4 {[%clk
0:01:18.4]} 50. Ra5 {[%clk 0:00:22.5]} 50... Kg6 {[%clk 0:01:18.8]} 51. Ra2
{[%clk 0:00:22.9]} 51... Kg7 {[%clk 0:01:18.7]} 52. Rb2 {[%clk 0:00:23.7]} 52...
Rxb2 {[%clk 0:01:14.6]} 1/2-1/2

[Event "*** Titled Tuesday Blitz"]
[Site "Chess.com"]
[Date "2018.01.02"]
[Round "9"]
[White "comedy_of_errors"]
[Black "Mikhail_Golubev"]
[Result "1-0"]
[WhiteElo "2596"]
[BlackElo "2320"]
[TimeControl "180+2"]
[EndTime "15:00:41 PST"]
[Termination "comedy_of_errors won by resignation"]

1. Nf3 {[%clk 0:03:01.9]} 1... d6 {[%clk 0:02:59.7]} 2. g3 {[%clk 0:03:02]} 2...
g6 {[%clk 0:02:59.3]} 3. d4 {[%clk 0:03:02]} 3... Nf6 {[%clk 0:02:58.5]} 4. b3
{[%clk 0:03:02.8]} 4... Bg7 {[%clk 0:02:57.7]} 5. Bb2 {[%clk 0:03:04.2]} 5...
O-O {[%clk 0:02:46.3]} 6. Bg2 {[%clk 0:03:05.4]} 6... c6 {[%clk 0:02:44]} 7. O-O
{[%clk 0:03:06.3]} 7... Bf5 {[%clk 0:02:39.6]} 8. c4 {[%clk 0:03:04]} 8... Na6
{[%clk 0:02:37.7]} 9. Nc3 {[%clk 0:03:04.7]} 9... Ne4 {[%clk 0:02:33.8]} 10. Rc1
{[%clk 0:03:02.1]} 10... Nb4 {[%clk 0:02:23.8]} 11. a3 {[%clk 0:02:49.3]} 11...
Nxc3 {[%clk 0:02:22.2]} 12. Rxc3 {[%clk 0:02:50.3]} 12... Na6 {[%clk 0:02:13.8]}
13. Rc1 {[%clk 0:02:44.3]} 13... Qd7 {[%clk 0:02:03.5]} 14. Re1 {[%clk
0:02:44.9]} 14... c5 {[%clk 0:01:49.4]} 15. e3 {[%clk 0:02:40.7]} 15... cxd4
{[%clk 0:01:41.1]} 16. Nxd4 {[%clk 0:02:39.7]} 16... Bh3 {[%clk 0:01:36.3]} 17.
Bh1 {[%clk 0:02:35.8]} 17... Nc5 {[%clk 0:01:36.6]} 18. b4 {[%clk 0:02:33.9]}
18... Na4 {[%clk 0:01:33.8]} 19. Ba1 {[%clk 0:02:35.4]} 19... Rac8 {[%clk
0:01:33.4]} 20. Nb5 {[%clk 0:02:16.4]} 20... Bxa1 {[%clk 0:01:20.7]} 21. Qxa4
{[%clk 0:02:16.4]} 21... Bb2 {[%clk 0:01:21.3]} 22. Rc2 {[%clk 0:02:16.8]} 22...
a6 {[%clk 0:01:19.4]} 23. Rxb2 {[%clk 0:02:12.7]} 23... Rxc4 {[%clk 0:01:19.7]}
24. Qa5 {[%clk 0:01:49.3]} 24... axb5 {[%clk 0:01:17.3]} 25. Qb6 {[%clk
0:01:50.4]} 25... Rfc8 {[%clk 0:01:17.8]} 26. Qxb7 {[%clk 0:01:45.3]} 26... Rc1
{[%clk 0:01:14]} 27. Rb1 {[%clk 0:01:42.7]} 27... Rxb1 {[%clk 0:01:11]} 28. Rxb1
{[%clk 0:01:43.1]} 28... Qf5 {[%clk 0:01:05.8]} 29. Qe4 {[%clk 0:01:30.6]} 29...
Qf6 {[%clk 0:01:05]} 30. Qd4 {[%clk 0:01:06.2]} 30... Qxd4 {[%clk 0:00:50.6]}
31. exd4 {[%clk 0:01:08.1]} 31... Rc3 {[%clk 0:00:50.2]} 32. Ra1 {[%clk
0:01:09.1]} 32... Rd3 {[%clk 0:00:49.9]} 33. Bc6 {[%clk 0:01:07]} 33... Rxd4
{[%clk 0:00:44]} 34. Bxb5 {[%clk 0:01:08.5]} 34... e5 {[%clk 0:00:41.8]} 35. Bf1
{[%clk 0:01:07.1]} 35... Be6 {[%clk 0:00:32.4]} 36. b5 {[%clk 0:01:01.4]} 36...
Rd2 {[%clk 0:00:29.8]} 37. Rb1 {[%clk 0:00:59.6]} 37... Bf5 {[%clk 0:00:29.7]}
38. Ra1 {[%clk 0:00:50]} 38... Kf8 {[%clk 0:00:20.6]} 39. a4 {[%clk 0:00:51.2]}
39... Ke8 {[%clk 0:00:20.6]} 40. a5 {[%clk 0:00:52.6]} 40... Kd8 {[%clk
0:00:17.4]} 41. a6 {[%clk 0:00:52.3]} 41... Be4 {[%clk 0:00:15]} 42. Bg2 {[%clk
0:00:53.5]} 42... Bxg2 {[%clk 0:00:14.3]} 43. Kxg2 {[%clk 0:00:55.4]} 1-0

[Event "*** Titled Tuesday Blitz"]
[Site "Chess.com"]
[Date "2018.01.02"]
[Round "9"]
[White "GMKrikor"]
[Black "krzyzan94"]
[Result "1-0"]
[WhiteElo "2680"]
[BlackElo "2617"]
[TimeControl "180+2"]
[EndTime "15:00:48 PST"]
[Termination "GMKrikor won on time"]

1. e4 {[%clk 0:03:01.9]} 1... c5 {[%clk 0:03:00.4]} 2. Nf3 {[%clk 0:03:03.2]}
2... d6 {[%clk 0:02:58.9]} 3. d4 {[%clk 0:03:04.6]} 3... cxd4 {[%clk 0:03:00.8]}
4. Nxd4 {[%clk 0:03:06.3]} 4... Nf6 {[%clk 0:03:01.9]} 5. Nc3 {[%clk 0:03:07.7]}
5... a6 {[%clk 0:03:01.8]} 6. g3 {[%clk 0:02:57.7]} 6... g6 {[%clk 0:03:01.2]}
7. Bg2 {[%clk 0:02:58.2]} 7... Bg7 {[%clk 0:03:01.4]} 8. O-O {[%clk 0:02:59.9]}
8... O-O {[%clk 0:03:01.9]} 9. b3 {[%clk 0:02:56.4]} 9... Bg4 {[%clk 0:02:43.8]}
10. Qd2 {[%clk 0:02:46.8]} 10... Nc6 {[%clk 0:02:40.3]} 11. Nxc6 {[%clk
0:02:46.3]} 11... bxc6 {[%clk 0:02:42.2]} 12. Bb2 {[%clk 0:02:27.8]} 12... Qc8
{[%clk 0:02:39.6]} 13. Na4 {[%clk 0:02:23.8]} 13... Rb8 {[%clk 0:02:27.1]} 14.
c4 {[%clk 0:02:09.6]} 14... Bh3 {[%clk 0:02:24.3]} 15. e5 {[%clk 0:02:09.4]}
15... dxe5 {[%clk 0:01:34.3]} 16. Bxe5 {[%clk 0:02:09.8]} 16... Bxg2 {[%clk
0:01:35.6]} 17. Kxg2 {[%clk 0:02:07.9]} 17... Rb7 {[%clk 0:01:25.4]} 18. Rad1
{[%clk 0:01:52.8]} 18... Rd7 {[%clk 0:01:17.3]} 19. Qe2 {[%clk 0:01:47.8]} 19...
Rxd1 {[%clk 0:01:15.1]} 20. Rxd1 {[%clk 0:01:48.6]} 20... Qf5 {[%clk 0:01:13.4]}
21. Bc3 {[%clk 0:00:48.9]} 21... h5 {[%clk 0:01:08.7]} 22. Qf3 {[%clk
0:00:46.9]} 22... Qc2 {[%clk 0:00:57.6]} 23. Rd2 {[%clk 0:00:44.7]} 23... Qb1
{[%clk 0:00:38.8]} 24. h3 {[%clk 0:00:41.8]} 24... Ne4 {[%clk 0:00:35]} 25. Rb2
{[%clk 0:00:33.8]} 25... Nxc3 {[%clk 0:00:12]} 26. Rxb1 {[%clk 0:00:33.6]} 26...
Nxb1 {[%clk 0:00:13.9]} 27. Qxc6 {[%clk 0:00:33.9]} 27... Rd8 {[%clk 0:00:14.3]}
28. c5 {[%clk 0:00:33.8]} 28... Rd2 {[%clk 0:00:14.2]} 29. Qe4 {[%clk
0:00:32.8]} 29... Bd4 {[%clk 0:00:08.4]} 30. Qxb1 {[%clk 0:00:32.5]} 30... Rxf2+
{[%clk 0:00:09.5]} 31. Kh1 {[%clk 0:00:33.8]} 31... h4 {[%clk 0:00:10.9]} 32.
gxh4 {[%clk 0:00:34.7]} 32... Be5 {[%clk 0:00:09.4]} 33. Qe1 {[%clk 0:00:31.1]}
33... Bg3 {[%clk 0:00:07.3]} 34. Qxe7 {[%clk 0:00:26.6]} 34... Kg7 {[%clk
0:00:03.3]} 35. c6 {[%clk 0:00:25.6]} 35... Rc2 {[%clk 0:00:03.7]} 36. Qe4
{[%clk 0:00:25.6]} 36... Rc1+ {[%clk 0:00:03.2]} 37. Kg2 {[%clk 0:00:26.4]}
37... Bc7 {[%clk 0:00:04]} 38. Nc3 {[%clk 0:00:25.8]} 1-0

[Event "*** Titled Tuesday Blitz"]
[Site "Chess.com"]
[Date "2018.01.02"]
[Round "9"]
[White "AndrewMcStone"]
[Black "plouarzel"]
[Result "1-0"]
[WhiteElo "2061"]
[BlackElo "2305"]
[TimeControl "180+2"]
[EndTime "15:00:49 PST"]
[Termination "AndrewMcStone won by resignation"]

1. d4 {[%clk 0:03:01.8]} 1... Nf6 {[%clk 0:03:00.5]} 2. c4 {[%clk 0:03:02.8]}
2... g6 {[%clk 0:02:58.8]} 3. Nc3 {[%clk 0:03:03.3]} 3... d5 {[%clk 0:02:55.5]}
4. cxd5 {[%clk 0:03:04.6]} 4... Nxd5 {[%clk 0:02:57.4]} 5. Bd2 {[%clk 0:03:03]}
5... Bg7 {[%clk 0:02:57.9]} 6. e4 {[%clk 0:02:58.4]} 6... Nb6 {[%clk 0:02:58.7]}
7. Be3 {[%clk 0:02:53.5]} 7... O-O {[%clk 0:02:56.6]} 8. f4 {[%clk 0:02:52.7]}
8... f5 {[%clk 0:02:44.5]} 9. Qb3+ {[%clk 0:02:45.1]} 9... Kh8 {[%clk
0:02:44.1]} 10. Nf3 {[%clk 0:02:33.4]} 10... e6 {[%clk 0:02:17.9]} 11. e5 {[%clk
0:02:27.5]} 11... Nc6 {[%clk 0:01:58.5]} 12. h4 {[%clk 0:02:19.3]} 12... Ne7
{[%clk 0:01:49.6]} 13. h5 {[%clk 0:02:15.4]} 13... Kg8 {[%clk 0:01:50.7]} 14.
hxg6 {[%clk 0:02:11.1]} 14... hxg6 {[%clk 0:01:51.3]} 15. Ng5 {[%clk 0:01:59.1]}
15... Nbd5 {[%clk 0:01:46.2]} 16. Nxd5 {[%clk 0:01:56.4]} 16... Nxd5 {[%clk
0:01:38.8]} 17. Bd2 {[%clk 0:01:45.2]} 17... c6 {[%clk 0:01:31.3]} 18. Qh3
{[%clk 0:01:41.1]} 18... Re8 {[%clk 0:01:23]} 19. Qh7+ {[%clk 0:01:41]} 19...
Kf8 {[%clk 0:01:22.6]} 20. Qxg6 {[%clk 0:01:37.3]} 20... Qc7 {[%clk 0:01:10]}
21. Nh7+ {[%clk 0:01:05.8]} 21... Kg8 {[%clk 0:01:02]} 22. Nf6+ {[%clk
0:01:05.3]} 22... Nxf6 {[%clk 0:01:02.9]} 23. exf6 {[%clk 0:01:05.3]} 23... Qf7
{[%clk 0:01:03.9]} 24. Qxg7+ {[%clk 0:01:02]} 24... Qxg7 {[%clk 0:01:04.2]} 25.
fxg7 {[%clk 0:01:02.8]} 25... Kxg7 {[%clk 0:01:04.3]} 26. O-O-O {[%clk
0:01:02.3]} 26... Bd7 {[%clk 0:01:02.3]} 27. Bd3 {[%clk 0:00:58.8]} 27... Rh8
{[%clk 0:00:57.8]} 28. g4 {[%clk 0:00:57.7]} 28... fxg4 {[%clk 0:00:53.2]} 29.
d5 {[%clk 0:00:52.1]} 29... Rxh1 {[%clk 0:00:52]} 30. Rxh1 {[%clk 0:00:53.6]}
30... exd5 {[%clk 0:00:44.1]} 31. Rh7+ {[%clk 0:00:50.3]} 31... Kf6 {[%clk
0:00:45.2]} 32. Rxd7 {[%clk 0:00:48.1]} 32... g3 {[%clk 0:00:46.3]} 33. Bc3+
{[%clk 0:00:44.7]} 33... d4 {[%clk 0:00:44.5]} 34. Bxd4+ {[%clk 0:00:42.5]}
34... Ke6 {[%clk 0:00:45.8]} 35. Rg7 {[%clk 0:00:43.4]} 35... Rd8 {[%clk
0:00:46.6]} 36. Bc4+ {[%clk 0:00:44.6]} 36... Kf5 {[%clk 0:00:46.8]} 37. Be5
{[%clk 0:00:39]} 37... b5 {[%clk 0:00:36.9]} 38. Be2 {[%clk 0:00:36.5]} 38...
Rh8 {[%clk 0:00:16.3]} 39. Rxg3 {[%clk 0:00:36.3]} 39... Rh1+ {[%clk 0:00:16.7]}
40. Kd2 {[%clk 0:00:37]} 40... Ke4 {[%clk 0:00:17.9]} 41. Bf3+ {[%clk
0:00:36.7]} 41... Kf5 {[%clk 0:00:18.9]} 42. Bxh1 {[%clk 0:00:37.3]} 1-0

[Event "*** Titled Tuesday Blitz"]
[Site "Chess.com"]
[Date "2018.01.02"]
[Round "9"]
[White "asms9699"]
[Black "DanielNaroditsky"]
[Result "0-1"]
[WhiteElo "2507"]
[BlackElo "2812"]
[TimeControl "180+2"]
[EndTime "15:00:50 PST"]
[Termination "DanielNaroditsky won by resignation"]

1. c4 {[%clk 0:03:01.9]} 1... e5 {[%clk 0:03:00.3]} 2. g3 {[%clk 0:03:03]} 2...
h5 {[%clk 0:03:01]} 3. Bg2 {[%clk 0:03:00.6]} 3... h4 {[%clk 0:03:02.3]} 4. Nc3
{[%clk 0:03:01.7]} 4... Nc6 {[%clk 0:03:02.7]} 5. e3 {[%clk 0:02:57.8]} 5... Bc5
{[%clk 0:02:57.6]} 6. Nge2 {[%clk 0:02:50.6]} 6... h3 {[%clk 0:02:58.6]} 7. Bf3
{[%clk 0:02:48.4]} 7... a6 {[%clk 0:02:48.2]} 8. O-O {[%clk 0:02:48]} 8... Ba7
{[%clk 0:02:45.7]} 9. d4 {[%clk 0:02:47.2]} 9... d6 {[%clk 0:02:46.1]} 10. b4
{[%clk 0:02:43.7]} 10... Nge7 {[%clk 0:02:43.7]} 11. b5 {[%clk 0:02:40.8]} 11...
axb5 {[%clk 0:02:44.2]} 12. cxb5 {[%clk 0:02:42.7]} 12... Na5 {[%clk 0:02:36]}
13. dxe5 {[%clk 0:02:31.6]} 13... Nf5 {[%clk 0:02:24]} 14. exd6 {[%clk
0:02:21.8]} 14... Nxd6 {[%clk 0:02:25.9]} 15. Ne4 {[%clk 0:02:09.5]} 15... Nac4
{[%clk 0:02:18.2]} 16. Nxd6+ {[%clk 0:02:08]} 16... Nxd6 {[%clk 0:02:18.3]} 17.
Bb2 {[%clk 0:02:03.4]} 17... Qg5 {[%clk 0:02:19.5]} 18. a4 {[%clk 0:01:41.1]}
18... O-O {[%clk 0:02:12]} 19. Qd5 {[%clk 0:01:24.1]} 19... Nf5 {[%clk
0:02:11.3]} 20. e4 {[%clk 0:01:08]} 20... Nh4 {[%clk 0:02:10.9]} 21. Bh1 {[%clk
0:01:01.4]} 21... Qg4 {[%clk 0:02:10.9]} 22. Nf4 {[%clk 0:00:44.9]} 22... g5
{[%clk 0:01:50.2]} 23. Qe5 {[%clk 0:00:26.3]} 23... f6 {[%clk 0:01:51]} 24. Qd5+
{[%clk 0:00:27.3]} 24... Rf7 {[%clk 0:01:51.6]} 25. Bxf6 {[%clk 0:00:24.6]}
25... gxf4 {[%clk 0:01:34.3]} 26. Bxh4 {[%clk 0:00:25.4]} 26... Be6 {[%clk
0:01:29.3]} 27. Qxb7 {[%clk 0:00:21.6]} 27... Rff8 {[%clk 0:01:08.6]} 28. e5
{[%clk 0:00:19.9]} 28... Bd4 {[%clk 0:00:51]} 29. Rad1 {[%clk 0:00:17.7]} 29...
Bxf2+ {[%clk 0:00:47]} 30. Kxf2 {[%clk 0:00:14.1]} 30... fxg3+ {[%clk
0:00:48.3]} 31. Ke3 {[%clk 0:00:14.6]} 31... g2 {[%clk 0:00:41.5]} 32. Bxg2
{[%clk 0:00:12.7]} 32... hxg2 {[%clk 0:00:40.5]} 33. Rg1 {[%clk 0:00:08.9]}
33... Qf4+ {[%clk 0:00:39.7]} 34. Kd3 {[%clk 0:00:09.1]} 34... Qc4+ {[%clk
0:00:27.7]} 35. Ke3 {[%clk 0:00:07.6]} 35... Qf4+ {[%clk 0:00:22.3]} 36. Kd3
{[%clk 0:00:08.7]} 36... Bf5+ {[%clk 0:00:23.5]} 37. Kc3 {[%clk 0:00:09.7]}
37... Qxe5+ {[%clk 0:00:21.8]} 38. Kb4 {[%clk 0:00:10.7]} 38... Qb2+ {[%clk
0:00:21.6]} 39. Kc5 {[%clk 0:00:11.2]} 39... Qc3+ {[%clk 0:00:22.2]} 40. Kd5
{[%clk 0:00:12.7]} 40... Qf3+ {[%clk 0:00:23.1]} 41. Ke5 {[%clk 0:00:13]} 41...
Qxb7 {[%clk 0:00:25]} 0-1

[Event "*** Titled Tuesday Blitz"]
[Site "Chess.com"]
[Date "2018.01.02"]
[Round "9"]
[White "GM_Huschenbeth"]
[Black "Ginger_GM"]
[Result "0-1"]
[WhiteElo "2463"]
[BlackElo "2487"]
[TimeControl "180+2"]
[EndTime "15:00:52 PST"]
[Termination "Ginger_GM won by checkmate"]

1. e4 {[%clk 0:03:01.9]} 1... c5 {[%clk 0:02:57.2]} 2. Nf3 {[%clk 0:03:02.7]}
2... d6 {[%clk 0:02:57.7]} 3. d4 {[%clk 0:03:03.7]} 3... cxd4 {[%clk 0:02:58.6]}
4. Nxd4 {[%clk 0:03:05.6]} 4... Nf6 {[%clk 0:02:59.5]} 5. Nc3 {[%clk 0:03:07.1]}
5... g6 {[%clk 0:03:00]} 6. Be3 {[%clk 0:03:08.1]} 6... Bg7 {[%clk 0:02:59.7]}
7. Be2 {[%clk 0:03:09.7]} 7... O-O {[%clk 0:02:59.2]} 8. Qd2 {[%clk 0:03:11.1]}
8... Nc6 {[%clk 0:02:56.2]} 9. O-O-O {[%clk 0:03:11.5]} 9... Bd7 {[%clk
0:02:55.4]} 10. f3 {[%clk 0:03:01.2]} 10... b5 {[%clk 0:02:44.5]} 11. Bxb5
{[%clk 0:02:54.6]} 11... Ne5 {[%clk 0:02:39]} 12. Be2 {[%clk 0:02:42.7]} 12...
Rb8 {[%clk 0:02:21.7]} 13. g4 {[%clk 0:02:21]} 13... Qc8 {[%clk 0:01:42]} 14. g5
{[%clk 0:02:13.7]} 14... Nh5 {[%clk 0:01:36.6]} 15. b3 {[%clk 0:01:56.2]} 15...
a5 {[%clk 0:01:18.5]} 16. a4 {[%clk 0:01:48.8]} 16... Nc6 {[%clk 0:00:51.6]} 17.
Nd5 {[%clk 0:01:38.1]} 17... Re8 {[%clk 0:00:50]} 18. Nb5 {[%clk 0:01:33.1]}
18... Be6 {[%clk 0:00:41.7]} 19. Ndc7 {[%clk 0:01:22.1]} 19... Rf8 {[%clk
0:00:37.7]} 20. Nxe6 {[%clk 0:01:07.4]} 20... fxe6 {[%clk 0:00:35.4]} 21. f4
{[%clk 0:00:54.5]} 21... Nb4 {[%clk 0:00:35.7]} 22. Bxh5 {[%clk 0:00:42.4]}
22... Rxb5 {[%clk 0:00:34.6]} 23. Bd4 {[%clk 0:00:39.8]} 23... Bxd4 {[%clk
0:00:29.2]} 24. c4 {[%clk 0:00:34.6]} 24... Bg7 {[%clk 0:00:21.8]} 25. axb5
{[%clk 0:00:31]} 25... gxh5 {[%clk 0:00:22]} 26. g6 {[%clk 0:00:23.4]} 26... h6
{[%clk 0:00:19.2]} 27. Rhf1 {[%clk 0:00:21.3]} 27... Qc5 {[%clk 0:00:20.2]} 28.
Qf2 {[%clk 0:00:21.2]} 28... Qc7 {[%clk 0:00:19.1]} 29. f5 {[%clk 0:00:20.5]}
29... a4 {[%clk 0:00:20.4]} 30. Qe2 {[%clk 0:00:14.1]} 30... axb3 {[%clk
0:00:20.8]} 31. Kd2 {[%clk 0:00:15.1]} 31... Qc5 {[%clk 0:00:21.5]} 32. Qe3
{[%clk 0:00:15.2]} 32... Qe5 {[%clk 0:00:20.4]} 33. Rb1 {[%clk 0:00:14.1]} 33...
Ra8 {[%clk 0:00:19.3]} 34. Qxb3 {[%clk 0:00:14.2]} 34... Ra2+ {[%clk 0:00:19.6]}
35. Qxa2 {[%clk 0:00:06.7]} 35... Qc3+ {[%clk 0:00:16.9]} 36. Ke2 {[%clk
0:00:07.3]} 36... Qd3+ {[%clk 0:00:17]} 37. Kf2 {[%clk 0:00:07.2]} 37... Bd4+
{[%clk 0:00:18]} 38. Kg2 {[%clk 0:00:07.9]} 38... Qxe4+ {[%clk 0:00:19.2]} 39.
Kg3 {[%clk 0:00:05.1]} 39... Qg4# {[%clk 0:00:19.7]} 0-1

[Event "*** Titled Tuesday Blitz"]
[Site "Chess.com"]
[Date "2018.01.02"]
[Round "9"]
[White "dawtonlms"]
[Black "Divertissement"]
[Result "0-1"]
[WhiteElo "2394"]
[BlackElo "2436"]
[TimeControl "180+2"]
[EndTime "15:01:03 PST"]
[Termination "Divertissement won by resignation"]

1. e4 {[%clk 0:03:01.9]} 1... c5 {[%clk 0:03:00.7]} 2. Nf3 {[%clk 0:03:02.8]}
2... e6 {[%clk 0:03:01.4]} 3. d3 {[%clk 0:03:02.5]} 3... b6 {[%clk 0:03:02.9]}
4. g3 {[%clk 0:03:03.6]} 4... Bb7 {[%clk 0:03:04.4]} 5. Bg2 {[%clk 0:03:05.1]}
5... Nf6 {[%clk 0:03:05.6]} 6. O-O {[%clk 0:03:06.3]} 6... d6 {[%clk 0:03:07.1]}
7. Re1 {[%clk 0:03:07.3]} 7... Be7 {[%clk 0:03:08.6]} 8. c3 {[%clk 0:03:05.7]}
8... O-O {[%clk 0:03:09.9]} 9. Nbd2 {[%clk 0:03:07]} 9... Nbd7 {[%clk
0:03:10.1]} 10. d4 {[%clk 0:03:08.1]} 10... cxd4 {[%clk 0:03:10.4]} 11. cxd4
{[%clk 0:03:10]} 11... Rc8 {[%clk 0:03:11.6]} 12. Qa4 {[%clk 0:03:09.4]} 12...
a6 {[%clk 0:03:11.3]} 13. Qd1 {[%clk 0:03:06.5]} 13... Qc7 {[%clk 0:03:11.2]}
14. Qe2 {[%clk 0:03:04.9]} 14... Qc2 {[%clk 0:03:10.7]} 15. e5 {[%clk
0:03:01.6]} 15... Nd5 {[%clk 0:02:55]} 16. Ne4 {[%clk 0:02:49.5]} 16... dxe5
{[%clk 0:02:48.7]} 17. dxe5 {[%clk 0:02:48.6]} 17... Bb4 {[%clk 0:02:45.5]} 18.
Bd2 {[%clk 0:02:42.4]} 18... Bc5 {[%clk 0:01:48.4]} 19. Rab1 {[%clk 0:02:20.5]}
19... Nb4 {[%clk 0:01:33.5]} 20. Nxc5 {[%clk 0:01:52.2]} 20... bxc5 {[%clk
0:01:22.6]} 21. Rec1 {[%clk 0:01:01.1]} 21... Qd3 {[%clk 0:01:20.2]} 22. Qxd3
{[%clk 0:00:45.8]} 22... Nxd3 {[%clk 0:01:20.3]} 23. Rc3 {[%clk 0:00:47]} 23...
Be4 {[%clk 0:01:04.3]} 24. Rd1 {[%clk 0:00:31.5]} 24... Nxb2 {[%clk 0:00:59.6]}
25. Re1 {[%clk 0:00:32.5]} 25... Bd5 {[%clk 0:01:01.1]} 26. Ng5 {[%clk
0:00:27.8]} 26... Bxg2 {[%clk 0:00:53.9]} 27. Kxg2 {[%clk 0:00:29.7]} 27... c4
{[%clk 0:00:49]} 28. Rb1 {[%clk 0:00:26.3]} 28... Nd3 {[%clk 0:00:48.8]} 29. f4
{[%clk 0:00:25.2]} 29... Rc6 {[%clk 0:00:24.9]} 30. Ne4 {[%clk 0:00:26.1]} 30...
Nb6 {[%clk 0:00:23.8]} 31. Rc2 {[%clk 0:00:09.9]} 31... f6 {[%clk 0:00:22.4]}
32. exf6 {[%clk 0:00:10.3]} 32... gxf6 {[%clk 0:00:24]} 33. Bc3 {[%clk
0:00:11.5]} 33... Nd5 {[%clk 0:00:22.2]} 34. Bd4 {[%clk 0:00:11.5]} 34... e5
{[%clk 0:00:21.5]} 35. fxe5 {[%clk 0:00:11]} 35... fxe5 {[%clk 0:00:23.4]} 36.
Bg1 {[%clk 0:00:12]} 36... c3 {[%clk 0:00:20.6]} 37. Rb3 {[%clk 0:00:12.3]}
37... Rfc8 {[%clk 0:00:20.6]} 38. Bf2 {[%clk 0:00:11.6]} 38... N3b4 {[%clk
0:00:19.6]} 39. Rc1 {[%clk 0:00:12.2]} 39... c2 {[%clk 0:00:21.1]} 40. Rb2
{[%clk 0:00:13]} 40... Nd3 {[%clk 0:00:21.6]} 0-1